fUSD/lending_fUSD_20250823
["ID","MTS","AMOUNT","RATE_DAILY","PERIOD"]
[380997811,1755930731435,-400.0,0.00015616,2]
[380997812,1755930731446,-400.0,0.00015616,2]
[380997813,1755930731457,-400.0,0.00015616,2]
[380997814,1755930731466,-400.0,0.00015616,2]
[380997815,1755930731476,-589.73,0.00015616,2]
[380997816,1755930731485,-400.0,0.00015616,2]
[380997817,1755930731495,-530.1,0.00015616,2]
[380997818,1755930731505,-683.39,0.00015616,2]
[380997819,1755930731514,-484.79,0.00015616,2]
[380997820,1755930731524,-643.13,0.00015616,2]
[380997821,1755930731533,-400.0,0.00015616,2]
[380997822,1755930731542,-400.0,0.00015616,2]
[380997823,1755930731552,-927.72,0.00015616,2]
[380997824,1755930731561,-400.0,0.00015616,2]
[380997825,1755930731571,-417.61,0.00015616,2]
[380997826,1755930731580,-558.89,0.00015616,2]
[380997827,1755930731590,-400.0,0.00015616,2]
[380997828,1755930731599,-433.09,0.00015616,2]
[380997829,1755930731609,-254.304402,0.00015616,2]
[380997830,1755930731618,-460.41,0.00015616,2]
[380997831,1755930731628,-400.0,0.00015616,2]
[380997832,1755930731637,-463.42,0.00015616,2]
[380997833,1755930731646,-400.13,0.00015616,2]
[380997834,1755930731656,-473.4,0.00015616,2]
[380997835,1755930731666,-400.0,0.00015616,2]
[380997836,1755930731675,-400.0,0.00015616,2]
[380997837,1755930731684,-400.0,0.00015616,2]
[380997838,1755930731696,-537.84,0.00015616,2]
[380997839,1755930731705,-598.61,0.00015616,2]
[380997840,1755930731714,-659.98,0.00015616,2]
[380997841,1755930731724,-231.42,0.00015616,2]
[380997842,1755930731733,-400.0,0.00015616,2]
[380997843,1755930731742,-559.14,0.00015616,2]
[380997844,1755930731752,-666.69,0.00015616,2]
[380997845,1755930731761,-1062.126313,0.00015616,2]
[380997846,1755930731770,-549.63,0.00015616,2]
[380997847,1755930731780,-551.78,0.00015616,2]
[380997848,1755930731789,-400.0,0.00015616,2]
[380997849,1755930731799,-670.71,0.00015616,2]
[380997850,1755930731809,-488.75,0.00015616,2]
[380997851,1755930731818,-504.46,0.00015616,2]
[380997852,1755930731828,-498.06,0.00015616,2]
[380997853,1755930731838,-400.0,0.00015616,2]
[380997854,1755930731847,-1574.58,0.00015616,2]
[380997855,1755930731857,-523.65,0.00015616,2]
[380997856,1755930731866,-690.06,0.00015616,2]
[380997857,1755930731875,-483.37,0.00015616,2]
[380997858,1755930731884,-906.04,0.00015616,2]
[380997859,1755930731994,-478.28,0.00015616,2]
[380997860,1755930732004,-400.0,0.00015616,2]
[380997861,1755930732013,-463.08,0.00015616,2]
[380997862,1755930732023,-400.0,0.00015616,2]
[380997863,1755930732033,-896.65,0.00015616,2]
[380997864,1755930732043,-664.4,0.00015616,2]
[380997865,1755930732053,-485.14,0.00015616,2]
[380997866,1755930732063,-463.63,0.00015616,2]
[380997867,1755930732073,-400.0,0.00015616,2]
[380997868,1755930732082,-400.46,0.00015616,2]
[380997869,1755930732091,-522.33,0.00015616,2]
[380997870,1755930732100,-597.16,0.00015616,2]
[380997871,1755930732112,-634.29,0.00015616,2]
[380997872,1755930732124,-730.43,0.00015616,2]
[380997873,1755930732133,-400.0,0.00015616,2]
[380997874,1755930732143,-777.56,0.00015616,2]
[380997875,1755930732152,-406.13,0.00015616,2]
[380997876,1755930732161,-585.18,0.00015616,2]
[380997877,1755930732171,-400.0,0.00015616,2]
[380997878,1755930732180,-400.0,0.00015616,2]
[380997879,1755930732190,-406.67,0.00015616,2]
[380997880,1755930732199,-629.89,0.00015616,2]
[380997881,1755930732209,-820.56,0.00015616,2]
[380997882,1755930732218,-400.0,0.00015616,2]
[380997883,1755930732228,-677.66,0.00015616,2]
[380997884,1755930732237,-654.77,0.00015616,2]
[380997885,1755930732247,-400.0,0.00015616,2]
[380997886,1755930732256,-400.0,0.00015616,2]
[380997887,1755930732266,-504.2,0.00015616,2]
[380997888,1755930732275,-700.52,0.00015616,2]
[380997889,1755930732284,-522.25,0.00015616,2]
[380997890,1755930732298,-541.83,0.00015616,2]
[380997891,1755930732307,-924.13,0.00015616,2]
[380997892,1755930732316,-400.0,0.00015616,2]
[380997893,1755930732327,-626.52,0.00015616,2]
[380997894,1755930732336,-983.52,0.00015616,2]
[380997895,1755930732346,-400.0,0.00015616,2]
[380997896,1755930732356,-534.72,0.00015616,2]
[380997897,1755930732368,-400.0,0.00015616,2]
[380997898,1755930732378,-463.0,0.00015616,2]
[380997899,1755930732387,-810.94,0.00015616,2]
[380997900,1755930732396,-632.58,0.00015616,2]
[380997901,1755930732406,-1018.11,0.00015616,2]
[380997902,1755930732415,-459.77,0.00015616,2]
[380997903,1755930732425,-400.0,0.00015616,2]
[380997904,1755930732434,-400.0,0.00015616,2]
[380997905,1755930732444,-400.0,0.00015616,2]
[380997906,1755930732455,-765.63,0.00015616,2]
[380997907,1755930732465,-814.39,0.00015616,2]
[380997908,1755930732475,-400.0,0.00015616,2]
[380997909,1755930732484,-464.59,0.00015616,2]
[380997910,1755930732494,-400.0,0.00015616,2]
[380997911,1755930732503,-744.29,0.00015616,2]
[380997912,1755930732513,-707.25,0.00015616,2]
[380997913,1755930732522,-506.42,0.00015616,2]
[380997914,1755930732531,-400.0,0.00015616,2]
[380997915,1755930732541,-715.14,0.00015616,2]
[380997916,1755930732550,-414.09,0.00015616,2]
[380997917,1755930732560,-1000.0,0.00015616,2]
[380997918,1755930732569,-738.62,0.00015616,2]
[380997919,1755930732578,-400.0,0.00015616,2]
[380997920,1755930732588,-716.85,0.00015616,2]
[380997921,1755930732597,-802.16,0.00015616,2]
[380997922,1755930732607,-400.0,0.00015616,2]
[380997923,1755930732616,-632.2,0.00015616,2]
[380997924,1755930732625,-933.05,0.00015616,2]
[380997925,1755930732636,-400.0,0.00015616,2]
[380997926,1755930732645,-667.21,0.00015616,2]
[380997927,1755930732655,-841.3,0.00015616,2]
[380997928,1755930732664,-400.0,0.00015616,2]
[380997929,1755930732674,-400.0,0.00015616,2]
[380997930,1755930732683,-678.61,0.00015616,2]
[380997931,1755930732693,-400.0,0.00015616,2]
[380997932,1755930732702,-449.99,0.00015616,2]
[380997933,1755930732712,-430.74,0.00015616,2]
[380997934,1755930732721,-519.22,0.00015616,2]
[380997935,1755930732731,-753.87,0.00015616,2]
[380997936,1755930732742,-578.08,0.00015616,2]
[380997937,1755930732753,-400.0,0.00015616,2]
[380997938,1755930732763,-762.2,0.00015616,2]
[380997939,1755930732773,-552.89,0.00015616,2]
[380997940,1755930732783,-400.0,0.00015616,2]
[380997941,1755930732792,-1130.07,0.00015616,2]
[380997942,1755930732803,-400.0,0.00015616,2]
[380997943,1755930732814,-756.24,0.00015616,2]
[380997944,1755930732823,-400.0,0.00015616,2]
[380997945,1755930732835,-832.04,0.00015616,2]
[380997946,1755930732845,-734.03,0.00015616,2]
[380997947,1755930732855,-881.58,0.00015616,2]
[380997948,1755930732864,-400.0,0.00015616,2]
[380997949,1755930732874,-607.46,0.00015616,2]
[380997950,1755930732883,-403.96,0.00015616,2]
[380997951,1755930732892,-1082.64,0.00015616,2]
[380997952,1755930732902,-641.12,0.00015616,2]
[380997953,1755930732911,-400.0,0.00015616,2]
[380997954,1755930732922,-711.56,0.00015616,2]
[380997955,1755930732932,-400.0,0.00015616,2]
[380997956,1755930732942,-400.0,0.00015616,2]
[380997957,1755930732951,-774.36,0.00015616,2]
[380997958,1755930732961,-744.18,0.00015616,2]
[380997959,1755930732971,-400.0,0.00015616,2]
[380997960,1755930732981,-472.39,0.00015616,2]
[380997961,1755930732991,-400.0,0.00015616,2]
[380997962,1755930733000,-541.28,0.00015616,2]
[380997963,1755930733009,-791.97,0.00015616,2]
[380997964,1755930733018,-976.58,0.00015616,2]
[380997965,1755930733028,-411.91,0.00015616,2]
[380997966,1755930733039,-621.35,0.00015616,2]
[380997967,1755930733049,-690.96,0.00015616,2]
[380997968,1755930733058,-602.8,0.00015616,2]
[380997969,1755930733068,-905.63,0.00015616,2]
[380997970,1755930733078,-893.46,0.00015616,2]
[380997971,1755930733088,-433.28,0.00015616,2]
[380997972,1755930733098,-400.0,0.00015616,2]
[380997973,1755930733108,-664.51,0.00015616,2]
[380997974,1755930733118,-400.0,0.00015616,2]
[380997975,1755930733127,-610.58,0.00015616,2]
[380997976,1755930733136,-400.0,0.00015616,2]
[380997977,1755930733146,-975.83,0.00015616,2]
[380997978,1755930733155,-520.12,0.00015616,2]
[380997979,1755930733164,-567.16,0.00015616,2]
[380997980,1755930733174,-437.71,0.00015616,2]
[380997981,1755930733183,-591.76,0.00015616,2]
[380997982,1755930733194,-629.55,0.00015616,2]
[380997983,1755930733204,-707.96,0.00015616,2]
[380997984,1755930733213,-976.57,0.00015616,2]
[380997985,1755930733222,-400.0,0.00015616,2]
[380997986,1755930733232,-548.63,0.00015616,2]
[380997987,1755930733241,-696.63,0.00015616,2]
[380997988,1755930733251,-548.08,0.00015616,2]
[380997989,1755930733260,-421.64,0.00015616,2]
[380997990,1755930733269,-400.0,0.00015616,2]
[380997991,1755930733279,-1327.74,0.00015616,2]
[380997992,1755930733291,-408.25,0.00015616,2]
[380997993,1755930733301,-666.95,0.00015616,2]
[380997994,1755930733311,-400.0,0.00015616,2]
[380997995,1755930733320,-400.0,0.00015616,2]
[380997996,1755930733331,-478.81,0.00015616,2]
[380997997,1755930733340,-400.0,0.00015616,2]
[380997998,1755930733350,-400.0,0.00015616,2]
[380997999,1755930733359,-475.87,0.00015616,2]
[380998000,1755930733370,-752.44,0.00015616,2]
[380998001,1755930733380,-553.32,0.00015616,2]
[380998002,1755930733390,-414.48,0.00015616,2]
[380998003,1755930733399,-598.85,0.00015616,2]
[380998004,1755930733409,-400.0,0.00015616,2]
[380998005,1755930733419,-418.3,0.00015616,2]
[380998006,1755930733428,-400.0,0.00015616,2]
[380998007,1755930733438,-590.73,0.00015616,2]
[380998008,1755930733447,-558.79,0.00015616,2]
[380998009,1755930733457,-977.36,0.00015616,2]
[380998010,1755930733466,-400.0,0.00015616,2]
[380998011,1755930733476,-400.0,0.00015616,2]
[380998012,1755930733485,-400.0,0.00015616,2]
[380998013,1755930733495,-400.0,0.00015616,2]
[380998014,1755930733504,-400.0,0.00015616,2]
[380998015,1755930733514,-1058.0,0.00015616,2]
[380998016,1755930733523,-595.73,0.00015616,2]
[380998017,1755930733533,-792.12,0.00015616,2]
[380998018,1755930733542,-490.78,0.00015616,2]
[380998019,1755930733551,-400.0,0.00015616,2]
[380998020,1755930733560,-400.0,0.00015616,2]
[380998021,1755930733569,-400.0,0.00015616,2]
[380998022,1755930733578,-400.0,0.00015616,2]
[380998023,1755930733588,-664.29,0.00015616,2]
[380998024,1755930733598,-603.04,0.00015616,2]
[380998025,1755930733608,-894.08,0.00015616,2]
[380998026,1755930733618,-400.0,0.00015616,2]
[380998027,1755930733627,-419.15,0.00015616,2]
[380998028,1755930733637,-538.29,0.00015616,2]
[380998029,1755930733647,-400.0,0.00015616,2]
[380998030,1755930733656,-855.49,0.00015616,2]
[380998031,1755930733666,-400.0,0.00015616,2]
[380998032,1755930733675,-423.93,0.00015616,2]
[380998033,1755930733685,-400.0,0.00015616,2]
[380998034,1755930733696,-509.54,0.00015616,2]
[380998035,1755930733705,-633.58,0.00015616,2]
[380998036,1755930733714,-400.0,0.00015616,2]
[380998037,1755930733724,-400.0,0.00015616,2]
[380998038,1755930733733,-400.0,0.00015616,2]
[380998039,1755930733742,-3166.9,0.00015616,2]
[380998040,1755930733752,-400.0,0.00015616,2]
[380998041,1755930733762,-532.83,0.00015616,2]
[380998042,1755930733771,-400.0,0.00015616,2]
[380998043,1755930733781,-462.81,0.00015616,2]
[380998044,1755930733790,-487.36,0.00015616,2]
[380998045,1755930733800,-571.73,0.00015616,2]
[380998046,1755930733809,-781.23,0.00015616,2]
[380998047,1755930733820,-990.26,0.00015616,2]
[380998048,1755930733829,-712.9,0.00015616,2]
[380998049,1755930733839,-400.0,0.00015616,2]
[380998050,1755930733848,-761.19,0.00015616,2]
[380998051,1755930733857,-400.0,0.00015616,2]
[380998052,1755930733867,-400.0,0.00015616,2]
[380998053,1755930733876,-713.0,0.00015616,2]
[380998054,1755930733886,-594.22,0.00015616,2]
[380998055,1755930733895,-400.0,0.00015616,2]
[380998056,1755930733904,-736.28,0.00015616,2]
[380998057,1755930733914,-400.0,0.00015616,2]
[380998058,1755930733925,-715.03,0.00015616,2]
[380998059,1755930733934,-441.42,0.00015616,2]
[380998060,1755930733945,-400.0,0.00015616,2]
[380998061,1755930733954,-931.43,0.00015616,2]
[380998062,1755930733963,-602.5,0.00015616,2]
[380998063,1755930733973,-649.04,0.00015616,2]
[380998064,1755930733982,-553.23,0.00015616,2]
[380998065,1755930733992,-400.0,0.00015616,2]
[380998066,1755930734001,-400.0,0.00015616,2]
[380998067,1755930734010,-942.63,0.00015616,2]
[380998068,1755930734020,-419.63,0.00015616,2]
[380998069,1755930734029,-720.71,0.00015616,2]
[380998070,1755930734038,-624.59,0.00015616,2]
[380998071,1755930734048,-797.24,0.00015616,2]
[380998072,1755930734057,-400.0,0.00015616,2]
[380998073,1755930734067,-400.0,0.00015616,2]
[380998074,1755930734076,-400.0,0.00015616,2]
[380998075,1755930734086,-400.0,0.00015616,2]
[380998076,1755930734096,-587.49,0.00015616,2]
[380998077,1755930734105,-690.44,0.00015616,2]
[380998078,1755930734114,-692.13,0.00015616,2]
[380998079,1755930734123,-697.05,0.00015616,2]
[380998080,1755930734132,-731.85,0.00015616,2]
[380998081,1755930734141,-874.21,0.00015616,2]
[380998082,1755930734150,-542.89,0.00015616,2]
[380998083,1755930734159,-513.06,0.00015616,2]
[380998084,1755930734168,-460.59,0.00015616,2]
[380998085,1755930734177,-400.0,0.00015616,2]
[380998086,1755930734186,-764.63,0.00015616,2]
[380998087,1755930734197,-416.02,0.00015616,2]
[380998088,1755930734207,-512.62,0.00015616,2]
[380998089,1755930734217,-436.53,0.00015616,2]
[380998090,1755930734227,-400.0,0.00015616,2]
[380998091,1755930734237,-418.83,0.00015616,2]
[380998092,1755930734246,-692.03,0.00015616,2]
[380998093,1755930734256,-304.95796786,0.00015616,2]
[380998094,1755930734265,-1343.83,0.00015616,2]
[380998095,1755930734275,-617.12,0.00015616,2]
[380998096,1755930734287,-400.0,0.00015616,2]
[380998097,1755930734299,-764.95,0.00015616,2]
[380998098,1755930734308,-159.35704035,0.00015616,2]
[380998099,1755930734321,-325.33184905,0.00015616,2]
[380998100,1755930734330,-704.81,0.00015616,2]
[380998101,1755930734340,-400.0,0.00015616,2]
[380998102,1755930734350,-657.79,0.00015616,2]
[380998103,1755930734359,-1027.02,0.00015616,2]
[380998104,1755930734370,-677.4,0.00015616,2]
[380998105,1755930734380,-400.0,0.00015616,2]
[380998106,1755930734390,-400.0,0.00015616,2]
[380998107,1755930734399,-400.0,0.00015616,2]
[380998108,1755930734409,-400.0,0.00015616,2]
[380998109,1755930734418,-400.0,0.00015616,2]
[380998110,1755930734428,-400.0,0.00015616,2]
[380998111,1755930734438,-817.2,0.00015616,2]
[380998112,1755930734450,-500.32,0.00015616,2]
[380998113,1755930734460,-1019.45,0.00015616,2]
[380998114,1755930734469,-400.0,0.00015616,2]
[380998115,1755930734478,-554.8,0.00015616,2]
[380998116,1755930734488,-632.54,0.00015616,2]
[380998117,1755930734498,-624.73,0.00015616,2]
[380998118,1755930734507,-739.16,0.00015616,2]
[380998119,1755930734516,-583.62,0.00015616,2]
[380998120,1755930734527,-853.25,0.00015616,2]
[380998121,1755930734536,-990.21,0.00015616,2]
[380998122,1755930734546,-443.23353378,0.00015616,2]
[380998123,1755930734556,-12873.11,0.00015616,2]
[380998124,1755930734566,-400.0,0.00015616,2]
[380998125,1755930734575,-400.0,0.00015616,2]
[380998126,1755930734585,-588.98,0.00015616,2]
[380998127,1755930734594,-799.46,0.00015616,2]
[380998128,1755930734604,-646.95,0.00015616,2]
[380998129,1755930734613,-418.63,0.00015616,2]
[380998130,1755930734623,-897.81,0.00015616,2]
[380998131,1755930734632,-435.65,0.00015616,2]
[380998132,1755930734642,-987.03,0.00015616,2]
[380998133,1755930734652,-453.72,0.00015616,2]
[380998134,1755930734662,-558.93,0.00015616,2]
[380998135,1755930734672,-421.41,0.00015616,2]
[380998136,1755930734681,-400.0,0.00015616,2]
[380998137,1755930734691,-801.09,0.00015616,2]
[380998138,1755930734701,-400.0,0.00015616,2]
[380998139,1755930734710,-738.24,0.00015616,2]
[380998140,1755930734719,-1045.55,0.00015616,2]
[380998141,1755930734729,-940.82,0.00015616,2]
[380998142,1755930734739,-400.0,0.00015616,2]
[380998143,1755930734749,-400.0,0.00015616,2]
[380998144,1755930734758,-941.53,0.00015616,2]
[380998145,1755930734768,-1129.74,0.00015616,2]
[380998146,1755930734777,-400.0,0.00015616,2]
[380998147,1755930734786,-1172.0,0.00015616,2]
[380998148,1755930734797,-740.0,0.00015616,2]
[380998149,1755930734806,-831.91,0.00015616,2]
[380998150,1755930734816,-400.0,0.00015616,2]
[380998151,1755930734826,-778.45,0.00015616,2]
[380998152,1755930734836,-419.05,0.00015616,2]
[380998153,1755930734845,-400.0,0.00015616,2]
[380998154,1755930734856,-1047.67,0.00015616,2]
[380998155,1755930734867,-407.06,0.00015616,2]
[380998156,1755930734887,-400.0,0.00015616,2]
[380998157,1755930734899,-640.87,0.00015616,2]
[380998158,1755930734910,-400.0,0.00015616,2]
[380998159,1755930734921,-406.8,0.00015616,2]
[380998160,1755930734932,-400.0,0.00015616,2]
[380998161,1755930734945,-620.0,0.00015616,2]
[380998162,1755930734954,-566.33,0.00015616,2]
[380998163,1755930734964,-428.51,0.00015616,2]
[380998164,1755930734978,-400.0,0.00015616,2]
[380998165,1755930734997,-1110.17,0.00015616,2]
[380998166,1755930735016,-643.19,0.00015616,2]
[380998167,1755930735027,-400.0,0.00015616,2]
[380998168,1755930735036,-1209.16,0.00015616,2]
[380998169,1755930735045,-1114.49,0.00015616,2]
[380998170,1755930735055,-716.98,0.00015616,2]
[380998171,1755930735064,-458.89,0.00015616,2]
[380998172,1755930735074,-400.0,0.00015616,2]
[380998173,1755930735083,-626.95,0.00015616,2]
[380998174,1755930735093,-932.5,0.00015616,2]
[380998175,1755930735102,-893.99,0.00015616,2]
[380998176,1755930735111,-400.0,0.00015616,2]
[380998177,1755930735121,-640.9,0.00015616,2]
[380998178,1755930735131,-400.0,0.00015616,2]
[380998179,1755930735140,-1077.14,0.00015616,2]
[380998180,1755930735150,-400.0,0.00015616,2]
[380998181,1755930735159,-1129.31,0.00015616,2]
[380998182,1755930735168,-897.5,0.00015616,2]
[380998183,1755930735178,-928.82,0.00015616,2]
[380998184,1755930735188,-985.74,0.00015616,2]
[380998185,1755930735200,-584.91,0.00015616,2]
[380998186,1755930735214,-672.3,0.00015616,2]
[380998187,1755930735232,-402.933685,0.00015616,2]
[380998188,1755930735242,-681.69,0.00015616,2]
[380998189,1755930735251,-486.38,0.00015616,2]
[380998190,1755930735261,-482.01,0.00015616,2]
[380998191,1755930735270,-801.05,0.00015616,2]
[380998192,1755930735281,-705.27,0.00015616,2]
[380998193,1755930735294,-649.64,0.00015616,2]
[380998194,1755930735304,-611.51,0.00015616,2]
[380998195,1755930735314,-504.22,0.00015616,2]
[380998196,1755930735325,-475.16,0.00015616,2]
[380998197,1755930735336,-400.0,0.00015616,2]
[380998198,1755930735347,-753.61,0.00015616,2]
[380998199,1755930735356,-810.53,0.00015616,2]
[380998200,1755930735367,-296.74123227,0.00015616,2]
[380998201,1755930735377,-667.17,0.00015616,2]
[380998202,1755930735387,-2291.05,0.00015616,2]
[380998203,1755930735398,-446.02,0.00015616,2]
[380998204,1755930735408,-400.0,0.00015616,2]
[380998205,1755930735417,-616.47,0.00015616,2]
[380998206,1755930735427,-696.36,0.00015616,2]
[380998207,1755930735438,-1407.45,0.00015616,2]
[380998208,1755930735451,-508.92,0.00015616,2]
[380998209,1755930735462,-400.0,0.00015616,2]
[380998210,1755930735471,-881.54,0.00015616,2]
[380998211,1755930735481,-855.52,0.00015616,2]
[380998212,1755930735491,-400.0,0.00015616,2]
[380998213,1755930735502,-400.0,0.00015616,2]
[380998214,1755930735512,-400.0,0.00015616,2]
[380998215,1755930735522,-1284.58,0.00015616,2]
[380998216,1755930735532,-1014.43,0.00015616,2]
[380998217,1755930735541,-866.11,0.00015616,2]
[380998218,1755930735551,-729.3,0.00015616,2]
[380998219,1755930735562,-440.11,0.00015616,2]
[380998220,1755930735571,-400.0,0.00015616,2]
[380998221,1755930735580,-400.0,0.00015616,2]
[380998222,1755930735590,-477.59,0.00015616,2]
[380998223,1755930735599,-520.35,0.00015616,2]
[380998224,1755930735609,-1238.33,0.00015616,2]
[380998225,1755930735619,-400.0,0.00015616,2]
[380998226,1755930735628,-400.0,0.00015616,2]
[380998227,1755930735638,-656.46,0.00015616,2]
[380998228,1755930735647,-772.76,0.00015616,2]
[380998229,1755930735657,-400.0,0.00015616,2]
[380998230,1755930735667,-892.57,0.00015616,2]
[380998231,1755930735676,-400.0,0.00015616,2]
[380998232,1755930735686,-400.0,0.00015616,2]
[380998233,1755930735697,-600.2,0.00015616,2]
[380998234,1755930735707,-400.0,0.00015616,2]
[380998235,1755930735716,-400.0,0.00015616,2]
[380998236,1755930735725,-602.88,0.00015616,2]
[380998237,1755930735734,-590.02,0.00015616,2]
[380998238,1755930735744,-1076.13,0.00015616,2]
[380998239,1755930735754,-400.0,0.00015616,2]
[380998240,1755930735763,-736.8,0.00015616,2]
[380998241,1755930735772,-1141.99,0.00015616,2]
[380998242,1755930735781,-451.08,0.00015616,2]
[380998243,1755930735791,-400.0,0.00015616,2]
[380998244,1755930735801,-573.5,0.00015616,2]
[380998245,1755930735811,-821.55,0.00015616,2]
[380998246,1755930735820,-562.1,0.00015616,2]
[380998247,1755930735830,-1096.32,0.00015616,2]
[380998248,1755930735839,-624.58,0.00015616,2]
[380998249,1755930735849,-1117.58,0.00015616,2]
[380998250,1755930735858,-1352.51,0.00015616,2]
[380998251,1755930735867,-1337.58,0.00015616,2]
[380998252,1755930735877,-930.86,0.00015616,2]
[380998253,1755930735898,-491.34,0.00015616,2]
[380998254,1755930735907,-463.18,0.00015616,2]
[380998255,1755930735916,-1340.25,0.00015616,2]
[380998256,1755930735926,-400.0,0.00015616,2]
[380998257,1755930735935,-546.89,0.00015616,2]
[380998258,1755930735945,-871.98,0.00015616,2]
[380998259,1755930735956,-734.61,0.00015616,2]
[380998260,1755930735965,-1287.92,0.00015616,2]
[380998261,1755930735975,-944.89,0.00015616,2]
[380998262,1755930735984,-1082.98,0.00015616,2]
[380998263,1755930735994,-400.0,0.00015616,2]
[380998264,1755930736004,-400.0,0.00015616,2]
[380998265,1755930736013,-493.59,0.00015616,2]
[380998266,1755930736023,-411.6,0.00015616,2]
[380998267,1755930736032,-802.48,0.00015616,2]
[380998268,1755930736042,-794.21,0.00015616,2]
[380998269,1755930736052,-445.1,0.00015616,2]
[380998270,1755930736063,-581.6,0.00015616,2]
[380998271,1755930736073,-1006.63,0.00015616,2]
[380998272,1755930736082,-548.11,0.00015616,2]
[380998273,1755930736092,-1523.05,0.00015616,2]
[380998274,1755930736102,-400.0,0.00015616,2]
[380998275,1755930736112,-454.19,0.00015616,2]
[380998276,1755930736122,-567.41,0.00015616,2]
[380998277,1755930736131,-540.12,0.00015616,2]
[380998278,1755930736140,-541.18,0.00015616,2]
[380998279,1755930736150,-760.57,0.00015616,2]
[380998280,1755930736160,-1038.57,0.00015616,2]
[380998281,1755930736170,-1120.03,0.00015616,2]
[380998282,1755930736180,-400.0,0.00015616,2]
[380998283,1755930736190,-1113.52,0.00015616,2]
[380998284,1755930736200,-584.57,0.00015616,2]
[380998285,1755930736210,-400.0,0.00015616,2]
[380998286,1755930736220,-400.0,0.00015616,2]
[380998287,1755930736230,-684.51,0.00015616,2]
[380998288,1755930736240,-904.27,0.00015616,2]
[380998289,1755930736250,-660.57,0.00015616,2]
[380998290,1755930736260,-871.26,0.00015616,2]
[380998291,1755930736270,-923.07,0.00015616,2]
[380998292,1755930736279,-1031.27,0.00015616,2]
[380998293,1755930736290,-986.27,0.00015616,2]
[380998294,1755930736303,-1872.47,0.00015616,2]
[380998295,1755930736313,-994.88,0.00015616,2]
[380998296,1755930736324,-400.0,0.00015616,2]
[380998297,1755930736335,-768.72,0.00015616,2]
[380998298,1755930736344,-1031.23,0.00015616,2]
[380998299,1755930736354,-571.58,0.00015616,2]
[380998300,1755930736364,-400.0,0.00015616,2]
[380998301,1755930736377,-775.88,0.00015616,2]
[380998302,1755930736388,-400.0,0.00015616,2]
[380998303,1755930736398,-1016.95,0.00015616,2]
[380998304,1755930736409,-647.53,0.00015616,2]
[380998305,1755930736419,-908.13,0.00015616,2]
[380998306,1755930736428,-605.11,0.00015616,2]
[380998307,1755930736438,-639.89,0.00015616,2]
[380998308,1755930736448,-402.71,0.00015616,2]
[380998309,1755930736458,-405.51,0.00015616,2]
[380998310,1755930736467,-999.76,0.00015616,2]